fUST/lending_fUST_20250801
["ID","MTS","AMOUNT","RATE_DAILY","PERIOD"]
[376451569,1753983042506,-460.0,0.00019178,2]
[376451572,1753983042515,-460.0,0.00019178,2]
[376451575,1753983042525,-404.63081435,0.00019178,2]
[376451578,1753983042537,-460.0,0.00019178,2]
[376451580,1753983042546,-1028.4,0.00019178,2]
[376451583,1753983042555,-460.0,0.00019178,2]
[376451585,1753983042565,-460.0,0.00019178,2]
[376451586,1753983042574,-460.0,0.00019178,2]
[376451589,1753983042583,-465.31,0.00019178,2]
[376451590,1753983042592,-1435.41,0.00019178,2]
[376451592,1753983042602,-1051.03,0.00019178,2]
[376451595,1753983042611,-734.29,0.00019178,2]
[376451596,1753983042620,-460.0,0.00019178,2]
[376451598,1753983042629,-4571.06,0.00019178,2]
[376451600,1753983042638,-460.0,0.00019178,2]
[376451602,1753983042647,-461.67551966,0.00019178,2]
[376451604,1753983042657,-1043.69,0.00019178,2]
[376451606,1753983042666,-460.0,0.00019178,2]
[376451608,1753983042680,-460.0,0.00019178,2]
[376451610,1753983042690,-1229.11,0.00019178,2]
[376451612,1753983042700,-460.0,0.00019178,2]
[376451614,1753983042710,-460.0,0.00019178,2]
[376451616,1753983042720,-460.0,0.00019178,2]
[376451618,1753983042730,-4564.12,0.00019178,2]
[376451620,1753983042741,-460.0,0.00019178,2]
[376451622,1753983042754,-743.87,0.00019178,2]
[376451624,1753983042764,-605.01,0.00019178,2]
[376451626,1753983042773,-460.0,0.00019178,2]
[376451628,1753983042782,-460.0,0.00019178,2]
[376451630,1753983042791,-460.0,0.00019178,2]
[376451632,1753983042800,-550.48,0.00019178,2]
[376451634,1753983042809,-460.0,0.00019178,2]
[376451636,1753983042819,-1006.61,0.00019178,2]
[376451638,1753983042828,-460.0,0.00019178,2]
[376451640,1753983042838,-469.34,0.00019178,2]
[376451642,1753983042847,-460.0,0.00019178,2]
[376451644,1753983042856,-460.0,0.00019178,2]
[376451646,1753983042865,-2768.75,0.00019178,2]
[376451648,1753983042874,-460.0,0.00019178,2]
[376451650,1753983042884,-5057.89,0.00019178,2]
[376451652,1753983042893,-1651.61,0.00019178,2]
[376451654,1753983042903,-3421.75,0.00019178,2]
[376451656,1753983042913,-460.0,0.00019178,2]
[376451658,1753983042922,-1143.35,0.00019178,2]
[376451660,1753983042931,-460.0,0.00019178,2]
[376451662,1753983042942,-460.0,0.00019178,2]
[376451664,1753983042954,-460.0,0.00019178,2]
[376451666,1753983042963,-897.03,0.00019178,2]
[376451668,1753983042972,-460.0,0.00019178,2]
[376451670,1753983042982,-958.33,0.00019178,2]
[376451672,1753983042992,-475.83,0.00019178,2]
[376451674,1753983043001,-460.0,0.00019178,2]
[376451676,1753983043010,-1353.78,0.00019178,2]
[376451678,1753983043019,-503.87986958,0.00019178,2]
[376451680,1753983043029,-460.0,0.00019178,2]
[376451682,1753983043038,-460.0,0.00019178,2]
[376451684,1753983043047,-460.0,0.00019178,2]
[376451686,1753983043056,-1143.08,0.00019178,2]
[376451688,1753983043065,-460.0,0.00019178,2]
[376451690,1753983043074,-603.32,0.00019178,2]
[376451692,1753983043084,-474.36,0.00019178,2]
[376451694,1753983043093,-461.8392013,0.00019178,2]
[376451696,1753983043102,-765.27,0.00019178,2]
[376451698,1753983043111,-1067.91,0.00019178,2]
[376451700,1753983043121,-460.0,0.00019178,2]
[376451702,1753983043130,-460.0,0.00019178,2]
[376451704,1753983043139,-1322.07,0.00019178,2]
[376451706,1753983043148,-4541.19,0.00019178,2]
[376451708,1753983043157,-460.0,0.00019178,2]
[376451710,1753983043168,-460.0,0.00019178,2]
[376451712,1753983043177,-460.0,0.00019178,2]
[376451714,1753983043187,-460.0,0.00019178,2]
[376451716,1753983043196,-460.0,0.00019178,2]
[376451718,1753983043205,-460.0,0.00019178,2]
[376451720,1753983043214,-460.0,0.00019178,2]
[376451722,1753983043225,-500.0,0.00019178,2]
[376451724,1753983043234,-666.0,0.00019178,2]
[376451726,1753983043246,-361.334055,0.00019178,2]
[376451728,1753983043256,-1998.68714009,0.00019227,2]
[376451730,1753983043264,-151.0,0.00019228,2]
[376451732,1753983043273,-273.063,0.00019278,2]
[376451734,1753983043282,-1765.96841887,0.00019299,2]
[376451736,1753983043292,-531.733352,0.00019329,2]
[376451738,1753983043301,-531.733352,0.00019329,2]
[376451739,1753983043310,-531.733352,0.00019329,2]
[376451740,1753983043319,-531.733352,0.00019329,2]
[376451741,1753983043328,-151.0,0.00019329,2]
[376451742,1753983043337,-151.0,0.00019329,2]
[376451744,1753983043347,-151.0,0.00019329,2]
[376451746,1753983043356,-100000.0,0.00019329,2]
[376451748,1753983043365,-224.278322,0.00019399,2]
[376451749,1753983043374,-577.5773364,0.000194,2]
[376451751,1753983043383,-160.0,0.00019425,2]
[376451752,1753983043393,-160.0,0.00019425,2]
[376451754,1753983043404,-1977.92937377,0.00019425,2]
[376451756,1753983043495,-10664.13061633,0.00019425,2]
[376451757,1753983043504,-160.0,0.00019425,2]
[376451758,1753983043514,-160.0,0.00019425,2]
[376451759,1753983043524,-214.99831783,0.00019425,2]
[376451760,1753983043533,-160.0,0.00019425,2]
[376451761,1753983043543,-312.16666667,0.00019425,2]
[376451762,1753983043553,-216.18812866,0.00019425,2]
[376451763,1753983043562,-460.682337,0.00019425,2]
[376451764,1753983043572,-231.48161788,0.00019425,2]
[376451765,1753983043582,-160.0,0.00019425,2]
[376451766,1753983043591,-160.0,0.00019425,2]
[376451768,1753983043601,-841.37753757,0.00019425,2]
[376451770,1753983043610,-526.848153,0.00019425,2]
[376451772,1753983043623,-160.0,0.00019426,2]
[376451775,1753983043635,-303.56098135,0.00019451,2]
[376451777,1753983043645,-500.0,0.00019451,2]
[376451778,1753983043655,-500.0,0.00019451,2]
[376451780,1753983043669,-500.0,0.00019451,2]
[376451782,1753983043683,-500.0,0.00019451,2]
[376451784,1753983043693,-500.0,0.00019451,2]
[376451786,1753983043702,-500.0,0.00019451,2]
[376451788,1753983043711,-634.67344739,0.00019451,2]
[376451790,1753983043721,-500.0,0.00019451,2]
[376451792,1753983043730,-500.0,0.00019451,2]
[376451794,1753983043742,-500.0,0.00019451,2]
[376451796,1753983043752,-500.0,0.00019451,2]
[376451798,1753983043762,-500.0,0.00019451,2]
[376451800,1753983043771,-500.0,0.00019451,2]
[376451802,1753983043780,-500.0,0.00019451,2]
[376451804,1753983043789,-500.0,0.00019451,2]
[376451806,1753983043798,-500.0,0.00019451,2]
[376451808,1753983043807,-500.0,0.00019451,2]
[376451810,1753983043816,-500.0,0.00019451,2]
[376451812,1753983043825,-500.0,0.00019451,2]
[376451813,1753983043834,-500.0,0.00019451,2]
[376451814,1753983043843,-600.0,0.00019451,2]
[376451815,1753983043854,-500.0,0.00019451,2]
[376451816,1753983043863,-402.41651693,0.00019451,2]
[376451817,1753983043877,-97.58348307,0.00019451,2]
[376451818,1753983043886,-500.0,0.00019451,2]
[376451819,1753983043895,-500.0,0.00019451,2]
[376451820,1753983043909,-500.0,0.00019451,2]
[376451821,1753983043918,-531.733352,0.00019452,2]
[376451822,1753983043927,-531.733352,0.00019452,2]
[376451823,1753983043937,-531.733352,0.00019452,2]
[376451824,1753983043947,-531.733352,0.00019452,2]
[376451825,1753983043956,-531.733352,0.00019452,2]
[376451826,1753983043966,-531.733352,0.00019452,2]
[376451827,1753983043975,-151.0,0.00019452,2]
[376451828,1753983043985,-151.0,0.00019452,2]
[376451829,1753983043998,-151.0,0.00019452,2]
[376451831,1753983044007,-151.0,0.00019452,2]
[376451833,1753983044017,-151.0,0.00019452,2]
[376451835,1753983044026,-151.0,0.00019452,2]
[376451837,1753983044038,-151.0,0.00019452,2]
[376451839,1753983044048,-460.0,0.00019452,2]
[376451841,1753983044057,-460.0,0.00019452,2]
[376451843,1753983044066,-460.0,0.00019452,2]
[376451845,1753983044075,-460.0,0.00019452,2]
[376451847,1753983044084,-460.0,0.00019452,2]
[376451849,1753983044094,-557.34916765,0.00019452,2]
[376451851,1753983044103,-817.17,0.00019452,2]
[376451853,1753983044112,-460.0,0.00019452,2]
[376451855,1753983044122,-460.0,0.00019452,2]
[376451857,1753983044131,-460.0,0.00019452,2]
[376451859,1753983044140,-460.0,0.00019452,2]
[376451861,1753983044150,-464.24175177,0.00019452,2]
[376451863,1753983044159,-460.0,0.00019452,2]
[376451865,1753983044169,-447.90989579,0.00019452,2]
[376451909,1753983044591,-460.0,0.00019178,2]
[376451911,1753983044600,-460.43761571,0.00019178,2]
[376451913,1753983044609,-12.09010421,0.00019452,2]
[376451915,1753983044618,-460.0,0.00019452,2]
[376451917,1753983044627,-460.0,0.00019452,2]
[376451919,1753983044636,-460.0,0.00019452,2]
[376451921,1753983044646,-460.0,0.00019452,2]
[376451923,1753983044655,-460.0,0.00019452,2]
[376451925,1753983044665,-460.0,0.00019452,2]
[376451927,1753983044678,-677.94,0.00019452,2]
[376451929,1753983044691,-466.81,0.00019452,2]
[376451931,1753983044701,-460.0,0.00019452,2]
[376451933,1753983044710,-460.0,0.00019452,2]
[376451935,1753983044721,-460.0,0.00019452,2]
[376451937,1753983044730,-460.0,0.00019452,2]
[376451939,1753983044740,-460.0,0.00019452,2]
[376451941,1753983044751,-460.0,0.00019452,2]
[376451943,1753983044760,-460.0,0.00019452,2]
[376451945,1753983044769,-460.0,0.00019452,2]
[376451947,1753983044778,-460.0,0.00019452,2]
[376451949,1753983044787,-460.0,0.00019452,2]
[376451951,1753983044796,-460.0,0.00019452,2]
[376451953,1753983044806,-460.0,0.00019452,2]
[376451955,1753983044815,-460.0,0.00019452,2]
[376451957,1753983044824,-460.0,0.00019452,2]
[376451959,1753983044833,-469.80580821,0.00019452,2]
[376451961,1753983044843,-460.0,0.00019452,2]
[376451963,1753983044852,-460.0,0.00019452,2]
[376451965,1753983044861,-1430.76,0.00019452,2]
[376451967,1753983044871,-460.0,0.00019452,2]
[376451969,1753983044880,-460.0,0.00019452,2]
[376451971,1753983044889,-460.0,0.00019452,2]
[376451973,1753983044898,-460.0,0.00019452,2]
[376451975,1753983044907,-460.0,0.00019452,2]
[376451977,1753983044916,-460.0,0.00019452,2]
[376451979,1753983044926,-650.92,0.00019452,2]
[376451981,1753983044935,-460.0,0.00019452,2]
[376451983,1753983044945,-460.0,0.00019452,2]
[376451984,1753983044954,-460.0,0.00019452,2]
[376451986,1753983044966,-460.0,0.00019452,2]
[376451988,1753983044975,-955.7,0.00019452,2]
[376451990,1753983044985,-460.0,0.00019452,2]
[376451992,1753983045000,-302.31676619,0.00019452,2]
[376451994,1753983045009,-671.48,0.00019452,2]
[376451996,1753983045019,-460.0,0.00019452,2]
[376451998,1753983045028,-580.79,0.00019452,2]
[376452000,1753983045037,-496.72,0.00019452,2]
[376452002,1753983045046,-460.0,0.00019452,2]
[376452004,1753983045056,-460.0,0.00019452,2]
[376452006,1753983045065,-460.0,0.00019452,2]
[376452009,1753983045076,-460.0,0.00019452,2]
[376452011,1753983045085,-460.0,0.00019452,2]
[376452012,1753983045095,-460.0,0.00019452,2]
[376452015,1753983045105,-722.94,0.00019452,2]
[376452016,1753983045114,-460.0,0.00019452,2]
[376452018,1753983045123,-460.0,0.00019452,2]
[376452020,1753983045133,-518.18,0.00019452,2]
[376452023,1753983045142,-460.0,0.00019452,2]
[376452024,1753983045152,-460.0,0.00019452,2]
[376452026,1753983045161,-460.0,0.00019452,2]
[376452028,1753983045171,-624.21,0.00019452,2]
[376452030,1753983045180,-460.0,0.00019452,2]
[376452032,1753983045190,-460.0,0.00019452,2]
[376452034,1753983045199,-908.39,0.00019452,2]
[376452036,1753983045208,-460.0,0.00019452,2]
[376452038,1753983045218,-460.0,0.00019452,2]
[376452040,1753983045227,-494.69,0.00019452,2]
[376452042,1753983045236,-460.0,0.00019452,2]
[376452044,1753983045249,-460.0,0.00019452,2]
[376452046,1753983045258,-460.0,0.00019452,2]
[376452048,1753983045267,-460.0,0.00019452,2]
[376452050,1753983045276,-536.36,0.00019452,2]
[376452052,1753983045285,-460.0,0.00019452,2]
[376452054,1753983045294,-460.0,0.00019452,2]
[376452056,1753983045304,-460.0,0.00019452,2]
[376452073,1753983045314,-460.0,0.00019452,2]
[376452076,1753983045461,-819.44,0.00019452,2]
[376452078,1753983045470,-2351.14,0.00019452,2]
[376452080,1753983045479,-460.0,0.00019452,2]
[376452082,1753983045488,-607.53,0.00019452,2]
[376452084,1753983045499,-228.70128859,0.00019452,2]
[376452086,1753983045509,-460.0,0.00019452,2]
[376452088,1753983045519,-460.0,0.00019452,2]
[376452090,1753983045528,-460.0,0.00019452,2]
[376452092,1753983045537,-460.0,0.00019452,2]
[376452094,1753983045546,-257.23559786,0.00019452,2]
[376452096,1753983045555,-460.0,0.00019452,2]
[376452098,1753983045564,-460.0,0.00019452,2]
[376452100,1753983045573,-460.0,0.00019452,2]
[376452102,1753983045582,-460.0,0.00019452,2]
[376452104,1753983045592,-497.42,0.00019452,2]
[376452106,1753983045601,-460.0,0.00019452,2]
[376452107,1753983045610,-460.0,0.00019452,2]
[376452110,1753983045619,-906.82,0.00019452,2]
[376452111,1753983045629,-690.64,0.00019452,2]
[376452113,1753983045638,-460.0,0.00019452,2]
[376452115,1753983045647,-460.0,0.00019452,2]
[376452118,1753983045657,-460.0,0.00019452,2]
[376452120,1753983045667,-676.24,0.00019452,2]
[376452121,1753983045678,-467.44,0.00019452,2]
[376452123,1753983045688,-460.0,0.00019452,2]
[376452125,1753983045697,-210.21964142,0.00019452,2]
[376452127,1753983045707,-460.0,0.00019452,2]
[376452129,1753983045717,-968.95,0.00019452,2]
[376452131,1753983045726,-460.0,0.00019452,2]
[376452133,1753983045735,-460.0,0.00019452,2]
[376452135,1753983045744,-994.13,0.00019452,2]
[376452137,1753983045754,-460.0,0.00019452,2]
[376452139,1753983045763,-10276.75,0.00019452,2]
[376452141,1753983045774,-549.29010082,0.00019452,2]
[376452143,1753983045784,-3284.66,0.00019452,2]
[376452145,1753983045793,-1449.02,0.00019452,2]
[376452147,1753983045802,-1083.55,0.00019452,2]
[376452149,1753983045812,-460.0,0.00019452,2]
[376452151,1753983045821,-7338.41,0.00019452,2]
[376452153,1753983045830,-4145.89,0.00019452,2]
[376452155,1753983045839,-460.0,0.00019452,2]
[376452157,1753983045848,-460.0,0.00019452,2]
[376452159,1753983045858,-460.0,0.00019452,2]
[376452161,1753983045867,-1099.51,0.00019452,2]
[376452163,1753983045877,-523.01,0.00019452,2]
[376452165,1753983045886,-1042.85,0.00019452,2]
[376452167,1753983045895,-2526.61,0.00019452,2]
[376452169,1753983045904,-625.49,0.00019452,2]
[376452171,1753983045914,-203.11648751,0.00019452,2]
[376452173,1753983045924,-2153.84,0.00019452,2]
[376452175,1753983045934,-1095.57,0.00019452,2]
[376452177,1753983045943,-460.0,0.00019452,2]
[376452179,1753983045953,-1038.19,0.00019452,2]
[376452181,1753983045962,-460.0,0.00019452,2]
[376452183,1753983045972,-460.0,0.00019452,2]
[376452185,1753983045982,-460.0,0.00019452,2]
[376452187,1753983045991,-884.37,0.00019452,2]
[376452189,1753983046002,-460.0,0.00019452,2]
[376452191,1753983046011,-460.0,0.00019452,2]
[376452193,1753983046020,-702.08,0.00019452,2]
[376452195,1753983046028,-460.0,0.00019452,2]
[376452197,1753983046038,-5041.79,0.00019452,2]
[376452199,1753983046047,-460.0,0.00019452,2]
[376452201,1753983046057,-460.0,0.00019452,2]
[376452203,1753983046066,-465.8,0.00019452,2]
[376452205,1753983046075,-1314.51,0.00019452,2]
[376452207,1753983046085,-646.7,0.00019452,2]
[376452209,1753983046094,-460.0,0.00019452,2]
[376452211,1753983046103,-460.0,0.00019452,2]
[376452213,1753983046113,-460.0,0.00019452,2]
[376452215,1753983046122,-460.0,0.00019452,2]
[376452217,1753983046131,-555.5,0.00019452,2]
[376452218,1753983046141,-460.0,0.00019452,2]
[376452220,1753983046150,-460.0,0.00019452,2]
[376452223,1753983046159,-2777.98093204,0.00019452,2]
[376452357,1753983047701,-779.96906796,0.00019452,2]
[376452359,1753983047711,-47.24150627,0.00019452,2]
[376452361,1753983047725,-412.75849373,0.00019452,2]
[376452364,1753983047734,-683.44,0.00019452,2]
[376452367,1753983047743,-124.20943267,0.00019452,2]
[376452371,1753983047759,-460.0,0.00019452,2]
[376452916,1753983144796,24900.0,0.00018397,2]
[376452917,1753983233441,3408.31694473,0.00018584,7]
[376452919,1753983431784,368.57899,0.00013699,2]
[376452935,1753983936455,164.075397,0.00018593,2]
[376452942,1753984158973,11953.68233604,0.00018176,2]
[376452943,1753984159007,12946.31766396,0.00018176,2]
[376453114,1753984238508,-174.01171608,0.000189,2]
[376453116,1753984238520,-506.35,0.00019168,3]
[376453119,1753984238531,-253.18,0.00019168,3]
[376453121,1753984238542,-759.55,0.00019168,3]
[376453123,1753984238552,-300.0,0.00019177,2]
[376453125,1753984238562,-222.30099819,0.00019177,2]
[376453127,1753984238576,-977.69900181,0.00019177,2]
[376453130,1753984238588,-460.0,0.00019178,2]
[376453132,1753984238599,-460.0,0.00019178,2]
[376453134,1753984238610,-460.0,0.00019178,2]
[376453137,1753984238622,-460.0,0.00019178,2]
[376453139,1753984238634,-460.0,0.00019178,2]
[376453141,1753984238646,-621.45,0.00019178,2]
[376453144,1753984238659,-460.0,0.00019178,2]
[376453146,1753984238671,-245.04326988,0.00019178,2]
[376453148,1753984238683,-460.0,0.00019178,2]
[376453151,1753984238696,-460.0,0.00019178,2]
[376453153,1753984238705,-460.0,0.00019178,2]
[376453155,1753984238716,-460.0,0.00019178,2]
[376453157,1753984238726,-460.0,0.00019178,2]
[376453159,1753984238737,-460.0,0.00019178,2]
[376453161,1753984238748,-460.0,0.00019178,2]
[376453164,1753984238760,-460.0,0.00019178,2]
[376453166,1753984238773,-551.56,0.00019178,2]
[376453168,1753984238785,-460.0,0.00019178,2]
[376453171,1753984238797,-460.0,0.00019178,2]
[376453173,1753984238807,-460.0,0.00019178,2]
[376453175,1753984238818,-460.0,0.00019178,2]
[376453177,1753984238829,-460.0,0.00019178,2]
[376453179,1753984238840,-1114.62,0.00019178,2]
[376453182,1753984238853,-752.56,0.00019178,2]
[376453184,1753984238863,-460.0,0.00019178,2]
[376453186,1753984238874,-918.03,0.00019178,2]
[376453188,1753984238885,-460.0,0.00019178,2]
[376453190,1753984238896,-634.69,0.00019178,2]
[376453192,1753984238907,-460.0,0.00019178,2]
[376453195,1753984238917,-460.0,0.00019178,2]
[376453197,1753984238928,-460.0,0.00019178,2]
[376453199,1753984238939,-460.0,0.00019178,2]
[376453201,1753984238949,-460.0,0.00019178,2]
[376453203,1753984238960,-460.0,0.00019178,2]
[376453205,1753984238971,-1349.86,0.00019178,2]
[376453208,1753984238982,-639.05,0.00019178,2]
[376453210,1753984238992,-267.5240824,0.00019178,2]
[376453212,1753984239003,-652.25,0.00019178,2]
[376453214,1753984239014,-460.0,0.00019178,2]
[376453216,1753984239026,-460.0,0.00019178,2]
[376453218,1753984239036,-460.0,0.00019178,2]
[376453220,1753984239047,-475.0,0.00019178,2]
[376453222,1753984239058,-592.54,0.00019178,2]
[376453225,1753984239068,-460.0,0.00019178,2]
[376453227,1753984239080,-436.10676031,0.00019178,2]
[376453229,1753984239097,-180.20323969,0.00019178,2]
[376453231,1753984239107,-500.0,0.00019178,2]
[376453234,1753984239118,-460.0,0.00019178,2]
[376453236,1753984239130,-460.0,0.00019178,2]
[376453238,1753984239141,-851.85,0.00019178,2]
[376453240,1753984239151,-491.86,0.00019178,2]
[376453242,1753984239162,-515.54,0.00019178,2]
[376453244,1753984239173,-460.0,0.00019178,2]
[376453246,1753984239184,-499.49005193,0.00019178,2]
[376453248,1753984239195,-460.0,0.00019178,2]
[376453250,1753984239205,-460.0,0.00019178,2]
[376453253,1753984239218,-4910.07,0.00019178,2]
[376453255,1753984239229,-460.0,0.00019178,2]
[376453257,1753984239240,-460.0,0.00019178,2]
[376453259,1753984239251,-460.0,0.00019178,2]
[376453261,1753984239262,-460.0,0.00019178,2]
[376453263,1753984239273,-460.0,0.00019178,2]
[376453265,1753984239284,-460.0,0.00019178,2]
[376453268,1753984239294,-681.86,0.00019178,2]
[376453270,1753984239305,-770.32,0.00019178,2]
[376453272,1753984239315,-460.0,0.00019178,2]
[376453274,1753984239326,-460.0,0.00019178,2]
[376453276,1753984239337,-460.0,0.00019178,2]
[376453278,1753984239347,-460.0,0.00019178,2]
[376453280,1753984239357,-460.0,0.00019178,2]
[376453282,1753984239368,-581.46,0.00019178,2]
[376453284,1753984239379,-465.36666441,0.00019178,2]
[376453287,1753984239390,-460.0,0.00019178,2]
[376453289,1753984239401,-460.0,0.00019178,2]
[376453291,1753984239411,-1042.58,0.00019178,2]
[376453293,1753984239422,-460.0,0.00019178,2]
[376453295,1753984239433,-464.17303138,0.00019178,2]
[376453296,1753984239444,-460.0,0.00019178,2]
[376453297,1753984239454,-460.0,0.00019178,2]
[376453298,1753984239466,-460.0,0.00019178,2]
[376453299,1753984239477,-460.0,0.00019178,2]
[376453300,1753984239488,-460.0,0.00019178,2]
[376453301,1753984239499,-460.0,0.00019178,2]
[376453302,1753984239511,-460.0,0.00019178,2]
[376453303,1753984239521,-460.0,0.00019178,2]
[376453304,1753984239532,-460.0,0.00019178,2]
[376453305,1753984239543,-460.0,0.00019178,2]
[376453306,1753984239553,-460.0,0.00019178,2]
[376453307,1753984239564,-591.36,0.00019178,2]
[376453308,1753984239575,-460.0,0.00019178,2]
[376453309,1753984239585,-460.0,0.00019178,2]
[376453310,1753984239596,-460.0,0.00019178,2]
[376453312,1753984239607,-460.0,0.00019178,2]
[376453314,1753984239617,-907.37,0.00019178,2]
[376453316,1753984239628,-460.0,0.00019178,2]
[376453318,1753984239639,-460.0,0.00019178,2]
[376453320,1753984239650,-850.42,0.00019178,2]
[376453322,1753984239660,-460.0,0.00019178,2]
[376453325,1753984239671,-930.45,0.00019178,2]
[376453328,1753984239682,-3813.28,0.00019178,2]
[376453330,1753984239692,-460.0,0.00019178,2]
[376453332,1753984239703,-3010.94,0.00019178,2]
[376453334,1753984239717,-1031.58,0.00019178,2]
[376453336,1753984239730,-460.0,0.00019178,2]
[376453339,1753984239742,-460.0,0.00019178,2]
[376453341,1753984239754,-460.0,0.00019178,2]
[376453343,1753984239765,-460.0,0.00019178,2]
[376453345,1753984239775,-371.83596921,0.00019178,2]
[376453347,1753984239785,-460.0,0.00019178,2]
[376453349,1753984239795,-460.0,0.00019178,2]
[376453351,1753984239804,-460.0,0.00019178,2]
[376453353,1753984239813,-562.06501111,0.00019178,2]
[376453355,1753984239823,-878.82,0.00019178,2]
[376453357,1753984239832,-460.0,0.00019178,2]
[376453359,1753984239842,-1027.05,0.00019178,2]
[376453361,1753984239851,-2219.69,0.00019178,2]
[376453363,1753984239860,-1042.61,0.00019178,2]
[376453365,1753984239870,-2011.67,0.00019178,2]
[376453367,1753984239879,-1181.97,0.00019178,2]
[376453369,1753984239888,-460.0,0.00019178,2]
[376453371,1753984239898,-3324.91,0.00019178,2]
[376453396,1753984240119,-460.0,0.00019178,2]
[376453400,1753984240140,-2686.18,0.00019178,2]
[376453402,1753984240153,-460.0,0.00019178,2]
[376453404,1753984240163,-460.0,0.00019178,2]
[376453406,1753984240172,-460.0,0.00019178,2]
[376453408,1753984240181,-460.0,0.00019178,2]
[376453410,1753984240191,-460.0,0.00019178,2]
[376453412,1753984240200,-460.0,0.00019178,2]
[376453414,1753984240209,-460.0,0.00019178,2]
[376453416,1753984240219,-460.0,0.00019178,2]
[376453418,1753984240228,-460.0,0.00019178,2]
[376453420,1753984240237,-460.0,0.00019178,2]
[376453422,1753984240247,-1286.15,0.00019178,2]
[376453424,1753984240255,-460.0,0.00019178,2]
[376453426,1753984240264,-994.28,0.00019178,2]
[376453428,1753984240274,-4422.62,0.00019178,2]
[376453430,1753984240283,-191.94763187,0.00019178,2]
[376453432,1753984240292,-3858.85,0.00019178,2]
[376453434,1753984240301,-662.74,0.00019178,2]
[376453436,1753984240310,-460.0,0.00019178,2]
[376453438,1753984240319,-4749.38,0.00019178,2]
[376453440,1753984240327,-460.0,0.00019178,2]
[376453441,1753984240337,-460.0,0.00019178,2]
[376453443,1753984240347,-460.0,0.00019178,2]
[376453445,1753984240356,-1224.13,0.00019178,2]
[376453447,1753984240367,-460.0,0.00019178,2]
[376453449,1753984240376,-460.0,0.00019178,2]
[376453451,1753984240385,-460.0,0.00019178,2]
[376453453,1753984240394,-829.84,0.00019178,2]
[376453456,1753984240406,-460.0,0.00019178,2]
[376453457,1753984240415,-460.0,0.00019178,2]
[376453459,1753984240424,-461.82330426,0.00019178,2]
[376453461,1753984240433,-472.64,0.00019178,2]
[376453463,1753984240442,-460.0,0.00019178,2]
[376453465,1753984240451,-460.0,0.00019178,2]
[376453467,1753984240460,-645.65,0.00019178,2]
[376453469,1753984240470,-460.0,0.00019178,2]
[376453471,1753984240479,-535.76067518,0.00019178,2]
[376453473,1753984240488,-3261.46,0.00019178,2]
[376453475,1753984240497,-597.35,0.00019178,2]
[376453477,1753984240506,-1023.88,0.00019178,2]
[376453479,1753984240515,-460.0,0.00019178,2]
[376453481,1753984240524,-460.0,0.00019178,2]
[376453483,1753984240533,-460.0,0.00019178,2]
[376453485,1753984240542,-3427.49,0.00019178,2]